[Event "Turkish Cup 2022"]
[Site "Sakarya"]
[Date "2022.03.26"]
[Round "3.6"]
[White "Samani, Yamac"]
[Black "Kayan, Veli"]
[Result "1-0"]
[ECO "B51"]
[WhiteElo "2257"]
[BlackElo "1915"]
[Annotator "ChessBase"]
[PlyCount "114"]
[EventDate "2022.03.25"]
[EventType "swiss"]
[EventCountry "TUR"]
[SourceTitle "playchess.com"]
[Source "ChessBase"]
[SourceQuality "1"]
[TimeControl "5400+30"]

1. e4 {[%emt 0:01:00]} c5 {[%emt 0:01:00]} 2. Nf3 {[%emt 0:00:30]} Nc6 {[%emt 0:00:30]} 3. Nc3 {[%emt 0:00:30]} d6 {[%emt 0:00:30]} 4. Bb5 {[%emt 0:00:30]} Bd7 {[%emt 0:00:30]} 5. O-O {[%emt 0:00:30]} a6 {[%emt 0:00:30]} 6. Bxc6 {[%emt 0:00:30]} bxc6 {[%emt 0:02:30]} 7. e5 {[%emt 0:01:30]} d5 {[%emt 0:00:30]} 8. h3 {[%emt 0:01:30]} e6 {[%emt 0:02:30]} 9. d3 {[%emt 0:00:00]} h6 {[%emt 0:04:30]} 10. Ne2 {[%emt 0:05:00]} Be7 {[%emt 0:05:30]} 11. c4 {[%emt 0:08:30]} h5 {[%emt 0:03:30]} 12. Nh2 {[%emt 0:18:30]} Qc7 {[%emt 0:06:30]} 13. f4 {[%emt 0:02:30]} Nh6 {[%emt 0:03:30]} 14. Be3 {[%emt 0:09:30]} Nf5 {[%emt 0:07:30]} 15. Qd2 {[%emt 0:05:30]} a5 {[%emt 0:02:30]} 16. Nf3 {[%emt 0:01:30]} Rb8 {[%emt 0:15:30]} 17. Bf2 {[%emt 0:02:30]} Qb6 {[%emt 0:04:30]} 18. Nc3 {[%emt 0:03:30]} Nd4 {[%emt 0:06:30]} 19. Qd1 {[%emt 0:06:30]} Nxf3+ {[%emt 0:11:30]} 20. Qxf3 {[%emt 0:00:30]} Qb4 {[%emt 0:01:01]} 21. Rac1 {[%emt 0:05:30]} a4 {[%emt 0:09:13]} 22. f5 {[%emt 0:06:03]} Qa5 {[%emt 0:05:29]} 23. f6 {[%emt 0:03:43]} gxf6 {[%emt 0:01:08]} 24. exf6 {[%emt 0:00:10]} Bd6 {[%emt 0:00:07]} 25. Bg3 {[%emt 0:01:57]} Qc7 {[%emt 0:03:00]} 26. Bxd6 {[%emt 0:01:11]} Qxd6 {[%emt 0:00:01]} 27. Nxa4 {[%emt 0:00:28]} d4 {[%emt 0:01:15]} 28. Qf4 {[%emt 0:01:51]} Qxf4 {[%emt 0:02:22]} 29. Rxf4 {[%emt 0:00:02]} Rg8 {[%emt 0:00:00]} 30. Kh2 {[%emt 0:02:41]} Rg5 {[%emt 0:00:21]} 31. Re1 {[%emt 0:00:31]} Ra8 {[%emt 0:01:04]} 32. b3 {[%emt 0:00:59]} Ra5 {[%emt 0:00:19]} 33. h4 {[%emt 0:00:18]} Rg6 {[%emt 0:00:58]} 34. Re5 {[%emt 0:00:09]} Kd8 {[%emt 0:00:26]} 35. Rxh5 {[%emt 0:01:20]} Kc7 {[%emt 0:00:15]} 36. Rxc5 {[%emt 0:04:04]} Rxc5 {[%emt 0:00:42]} 37. Nxc5 {[%emt 0:00:01]} e5 {[%emt 0:00:18]} 38. Re4 {[%emt 0:00:31]} Bc8 {[%emt 0:00:46]} 39. Rxe5 {[%emt 0:01:13]} Kd6 {[%emt 0:00:18]} 40. Rh5 {[%emt 0:00:33]} Bg4 {[%emt 0:00:22]} 41. Ne4+ {[%emt 0:00:51]} Ke6 {[%emt 0:00:14]} 42. Rc5 {[%emt 0:00:16]} Be2 {[%emt 0:00:37]} 43. Rxc6+ {[%emt 0:01:02]} Kf5 {[%emt 0:00:48]} 44. Ng3+ {[%emt 0:00:54]} Kf4 {[%emt 0:00:14]} 45. Nxe2+ {[%emt 0:00:11]} Ke3 {[%emt 0:00:05]} 46. Rd6 {[%emt 0:02:36]} Kxe2 {[%emt 0:01:10]} 47. Rxd4 {[%emt 0:00:10]} Ke3 {[%emt 0:00:00]} 48. Re4+ {[%emt 0:00:47]} Kxd3 {[%emt 0:00:40]} 49. Rf4 {[%emt 0:00:15]} Ke3 {[%emt 0:00:35]} 50. Rf3+ {[%emt 0:00:15]} Ke4 {[%emt 0:00:41]} 51. c5 {[%emt 0:00:24]} Rh6 {[%emt 0:00:02]} 52. Kh3 {[%emt 0:00:11]} Rh5 {[%emt 0:00:16]} 53. Rc3 {[%emt 0:00:16]} Kd4 {[%emt 0:00:09]} 54. Rc4+ {[%emt 0:00:01]} Kd5 {[%emt 0:00:13]} 55. c6 {[%emt 0:00:05]} Rh8 {[%emt 0:00:30]} 56. c7 {[%emt 0:00:30]} Rc8 {[%emt 0:00:30]} 57. a4 {[%emt 0:00:00]} Ke5 {[%emt 0:00:00]} 1-0

[Event "Turkish Cup 2022"]
[Site "Sakarya"]
[Date "2022.03.26"]
[Round "3.7"]
[White "Demirag, Batuhan"]
[Black "Huseyinoglu, Alihan"]
[Result "0-1"]
[ECO "A36"]
[WhiteElo "1923"]
[BlackElo "2312"]
[Annotator "ChessBase"]
[PlyCount "82"]
[EventDate "2022.03.25"]
[EventType "swiss"]
[EventCountry "TUR"]
[SourceTitle "playchess.com"]
[Source "ChessBase"]
[SourceQuality "1"]
[TimeControl "5400+30"]

1. c4 {[%emt 0:01:00]} g6 {[%emt 0:03:00]} 2. g3 {[%emt 0:00:30]} Bg7 {[%emt 0:00:30]} 3. Bg2 {[%emt 0:01:30]} d6 {[%emt 0:00:30]} 4. Nc3 {[%emt 0:01:30]} c5 {[%emt 0:05:30]} 5. d3 {[%emt 0:05:30]} Nc6 {[%emt 0:00:30]} 6. Nh3 {[%emt 0:04:30]} h5 {[%emt 0:14:30]} 7. O-O {[%emt 0:03:30]} h4 {[%emt 0:01:30]} 8. Nf4 {[%emt 0:07:30]} Nf6 {[%emt 0:08:30]} 9. a3 {[%emt 0:08:30]} hxg3 {[%emt 0:05:30]} 10. hxg3 {[%emt 0:03:30]} Bd7 {[%emt 0:15:30]} 11. Rb1 {[%emt 0:03:30]} Qc8 {[%emt 0:03:30]} 12. Re1 {[%emt 0:17:30]} g5 {[%emt 0:13:30]} 13. Nfd5 {[%emt 0:00:30]} Bh3 {[%emt 0:01:30]} 14. Nxf6+ {[%emt 0:04:30]} Bxf6 {[%emt 0:00:30]} 15. Be4 {[%emt 0:06:30]} Bf5 {[%emt 0:05:28]} 16. Bg2 {[%emt 0:00:30]} Bxc3 {[%emt 0:03:22]} 17. bxc3 {[%emt 0:00:30]} f6 {[%emt 0:00:01]} 18. Qb3 {[%emt 0:04:30]} b6 {[%emt 0:01:57]} 19. Bxc6+ {[%emt 0:02:30]} Qxc6 {[%emt 0:00:03]} 20. f3 {[%emt 0:01:30]} Bxd3 {[%emt 0:02:11]} 21. Rb2 {[%emt 0:04:00]} Bf5 {[%emt 0:01:10]} 22. Qb5 {[%emt 0:01:33]} Bd7 {[%emt 0:00:31]} 23. Qxc6 {[%emt 0:00:54]} Bxc6 {[%emt 0:00:02]} 24. e4 {[%emt 0:00:00]} Kf7 {[%emt 0:02:03]} 25. Rg2 {[%emt 0:03:11]} Rag8 {[%emt 0:03:31]} 26. g4 {[%emt 0:03:59]} Rh3 {[%emt 0:00:30]} 27. Kf2 {[%emt 0:00:11]} Rgh8 {[%emt 0:00:00]} 28. Be3 {[%emt 0:01:01]} Ba4 {[%emt 0:00:54]} 29. Rb1 {[%emt 0:01:13]} Rh1 {[%emt 0:00:46]} 30. Rxh1 {[%emt 0:01:02]} Rxh1 {[%emt 0:00:03]} 31. Rg1 {[%emt 0:00:00]} Rxg1 {[%emt 0:01:30]} 32. Kxg1 {[%emt 0:00:27]} e5 {[%emt 0:00:30]} 33. Kf2 {[%emt 0:00:31]} Bb3 {[%emt 0:00:10]} 34. Bd2 {[%emt 0:01:08]} Bxc4 {[%emt 0:00:30]} 35. Ke3 {[%emt 0:00:01]} Ke6 {[%emt 0:01:12]} 36. Bc1 {[%emt 0:00:30]} Kd7 {[%emt 0:00:05]} 37. Bb2 {[%emt 0:00:46]} Kc6 {[%emt 0:00:10]} 38. Bc1 {[%emt 0:00:42]} Kb5 {[%emt 0:00:12]} 39. Bb2 {[%emt 0:00:40]} Ka4 {[%emt 0:00:22]} 40. Kd2 {[%emt 0:00:03]} Kb3 {[%emt 0:00:30]} 41. Bc1 {[%emt 0:00:00]} b5 {[%emt 0:00:07]} 0-1

[Event "Turkish Cup 2022"]
[Site "Sakarya"]
[Date "2022.03.26"]
[Round "3.8"]
[White "Eren, Ataberk"]
[Black "Anacak, Hasan Gunes"]
[Result "1-0"]
[ECO "D00"]
[WhiteElo "2306"]
[BlackElo "1798"]
[Annotator "ChessBase"]
[PlyCount "99"]
[EventDate "2022.03.25"]
[EventType "swiss"]
[EventCountry "TUR"]
[SourceTitle "playchess.com"]
[Source "ChessBase"]
[SourceQuality "1"]
[TimeControl "5400+30"]

1. d4 {[%emt 0:01:00]} d5 {[%emt 0:01:00]} 2. Bf4 {[%emt 0:00:30]} c5 {[%emt 0:00:30]} 3. e3 {[%emt 0:00:30]} Nc6 {[%emt 0:00:00]} 4. c3 {[%emt 0:01:30]} Nf6 {[%emt 0:04:00]} 5. Nd2 {[%emt 0:00:30]} Bf5 {[%emt 0:04:30]} 6. Qb3 {[%emt 0:06:30]} Qb6 {[%emt 0:03:30]} 7. dxc5 {[%emt 0:00:30]} Qxb3 {[%emt 0:00:30]} 8. axb3 {[%emt 0:00:30]} e5 {[%emt 0:01:30]} 9. Bg3 {[%emt 0:00:00]} Bxc5 {[%emt 0:01:30]} 10. b4 {[%emt 0:00:00]} Bd6 {[%emt 0:00:30]} 11. b5 {[%emt 0:05:30]} Nb8 {[%emt 0:00:30]} 12. Ngf3 {[%emt 0:03:30]} Nbd7 {[%emt 0:04:30]} 13. Be2 {[%emt 0:00:00]} Ne4 {[%emt 0:06:30]} 14. Nxe4 {[%emt 0:00:00]} Bxe4 {[%emt 0:00:30]} 15. O-O {[%emt 0:00:30]} f6 {[%emt 0:00:30]} 16. Nd2 {[%emt 0:05:30]} Bg6 {[%emt 0:08:30]} 17. Rfd1 {[%emt 0:01:30]} Nb6 {[%emt 0:10:30]} 18. Bf3 {[%emt 0:09:30]} Ke7 {[%emt 0:17:30]} 19. e4 {[%emt 0:00:30]} Nc4 {[%emt 0:03:30]} 20. Nxc4 {[%emt 0:12:30]} dxc4 {[%emt 0:00:00]} 21. Be2 {[%emt 0:00:30]} Rhc8 {[%emt 0:08:00]} 22. Ra4 {[%emt 0:00:30]} Bxe4 {[%emt 0:07:19]} 23. Rxc4 {[%emt 0:00:30]} Rxc4 {[%emt 0:01:07]} 24. Bxc4 {[%emt 0:00:00]} Rc8 {[%emt 0:01:02]} 25. Be2 {[%emt 0:01:00]} Bc5 {[%emt 0:01:47]} 26. Kf1 {[%emt 0:01:30]} Bc2 {[%emt 0:07:19]} 27. Ra1 {[%emt 0:00:30]} Bb3 {[%emt 0:00:05]} 28. f3 {[%emt 0:00:30]} Rc7 {[%emt 0:00:43]} 29. Bf2 {[%emt 0:00:30]} b6 {[%emt 0:01:40]} 30. Bxc5+ {[%emt 0:01:30]} bxc5 {[%emt 0:00:30]} 31. c4 {[%emt 0:00:30]} Bc2 {[%emt 0:00:00]} 32. Kf2 {[%emt 0:00:00]} Bf5 {[%emt 0:01:00]} 33. Ke3 {[%emt 0:00:00]} Rd7 {[%emt 0:03:17]} 34. Ra6 {[%emt 0:00:00]} Kd8 {[%emt 0:00:18]} 35. g4 {[%emt 0:00:00]} Bg6 {[%emt 0:00:56]} 36. h4 {[%emt 0:00:30]} Bf7 {[%emt 0:00:40]} 37. Bd3 {[%emt 0:02:30]} Rc7 {[%emt 0:01:56]} 38. g5 {[%emt 0:02:30]} f5 {[%emt 0:00:17]} 39. b3 {[%emt 0:00:30]} g6 {[%emt 0:01:00]} 40. Kd2 {[%emt 0:00:30]} Ke7 {[%emt 0:01:18]} 41. Kc3 {[%emt 0:00:30]} Be6 {[%emt 0:00:00]} 42. b4 {[%emt 0:01:30]} e4 {[%emt 0:01:12]} 43. fxe4 {[%emt 0:00:30]} fxe4 {[%emt 0:00:30]} 44. Be2 {[%emt 0:00:00]} cxb4+ {[%emt 0:00:00]} 45. Kxb4 {[%emt 0:00:00]} Bc8 {[%emt 0:00:06]} 46. Rf6 {[%emt 0:01:30]} Bb7 {[%emt 0:00:55]} 47. c5 {[%emt 0:03:30]} Bd5 {[%emt 0:00:07]} 48. c6 {[%emt 0:00:00]} e3 {[%emt 0:00:48]} 49. Kc5 {[%emt 0:00:00]} Bb3 {[%emt 0:00:35]} 50. Rf3 {[%emt 0:00:30]} 1-0

[Event "Turkish Cup 2022"]
[Site "Sakarya"]
[Date "2022.03.26"]
[Round "3.9"]
[White "Gazioglu, Halit"]
[Black "Ozsakallioglu, Okan"]
[Result "0-1"]
[ECO "D10"]
[WhiteElo "1880"]
[BlackElo "2270"]
[Annotator "ChessBase"]
[PlyCount "80"]
[EventDate "2022.03.25"]
[EventType "swiss"]
[EventCountry "TUR"]
[SourceTitle "playchess.com"]
[Source "ChessBase"]
[SourceQuality "1"]
[TimeControl "5400+30"]

1. d4 {[%emt 0:01:00]} d5 {[%emt 0:09:00]} 2. c4 {[%emt 0:00:30]} c6 {[%emt 0:00:00]} 3. Nc3 {[%emt 0:01:30]} dxc4 {[%emt 0:03:00]} 4. a4 {[%emt 0:00:30]} e5 {[%emt 0:00:00]} 5. Nf3 {[%emt 0:04:30]} exd4 {[%emt 0:01:00]} 6. Qxd4 {[%emt 0:05:30]} Qxd4 {[%emt 0:01:30]} 7. Nxd4 {[%emt 0:00:00]} Bc5 {[%emt 0:00:30]} 8. e3 {[%emt 0:01:00]} Bxd4 {[%emt 0:07:30]} 9. exd4 {[%emt 0:00:30]} Be6 {[%emt 0:00:30]} 10. Bf4 {[%emt 0:06:30]} Nf6 {[%emt 0:03:30]} 11. Bd6 {[%emt 0:04:30]} Kd7 {[%emt 0:12:30]} 12. Ba3 {[%emt 0:03:30]} Na6 {[%emt 0:04:30]} 13. Be2 {[%emt 0:01:30]} Nc7 {[%emt 0:00:30]} 14. O-O {[%emt 0:03:30]} Rhe8 {[%emt 0:00:30]} 15. Rac1 {[%emt 0:05:30]} Bd5 {[%emt 0:03:30]} 16. Rfd1 {[%emt 0:01:30]} b6 {[%emt 0:04:30]} 17. Bf1 {[%emt 0:07:30]} a6 {[%emt 0:06:30]} 18. g3 {[%emt 0:00:30]} b5 {[%emt 0:00:30]} 19. Bh3+ {[%emt 0:00:30]} Be6 {[%emt 0:00:00]} 20. Bg2 {[%emt 0:02:30]} Ncd5 {[%emt 0:01:00]} 21. Bc5 {[%emt 0:02:30]} Nxc3 {[%emt 0:00:30]} 22. bxc3 {[%emt 0:00:30]} Bd5 {[%emt 0:00:30]} 23. Bh3+ {[%emt 0:00:30]} Kc7 {[%emt 0:00:30]} 24. a5 {[%emt 0:01:30]} Bf3 {[%emt 0:03:30]} 25. Re1 {[%emt 0:03:30]} Ne4 {[%emt 0:03:30]} 26. Bb6+ {[%emt 0:00:30]} Kd6 {[%emt 0:00:00]} 27. Bg2 {[%emt 0:09:30]} Bxg2 {[%emt 0:04:00]} 28. Kxg2 {[%emt 0:00:30]} Kd5 {[%emt 0:00:00]} 29. f3 {[%emt 0:01:30]} Nxc3 {[%emt 0:01:00]} 30. Bc5 {[%emt 0:09:30]} Na4 {[%emt 0:00:30]} 31. Be7 {[%emt 0:01:30]} f6 {[%emt 0:00:30]} 32. Re4 {[%emt 0:01:30]} c3 {[%emt 0:04:30]} 33. Kf2 {[%emt 0:01:30]} Ra7 {[%emt 0:00:30]} 34. Bxf6 {[%emt 0:07:15]} Rxe4 {[%emt 0:01:30]} 35. fxe4+ {[%emt 0:02:34]} Kxe4 {[%emt 0:00:00]} 36. Bg5 {[%emt 0:02:06]} b4 {[%emt 0:00:00]} 37. Ke2 {[%emt 0:01:25]} Rf7 {[%emt 0:01:30]} 38. Bf4 {[%emt 0:01:52]} Rxf4 {[%emt 0:00:30]} 39. gxf4 {[%emt 0:00:30]} b3 {[%emt 0:00:00]} 40. Rd1 {[%emt 0:05:22]} b2 {[%emt 0:00:00]} 0-1

[Event "Turkish Cup 2022"]
[Site "Sakarya"]
[Date "2022.03.26"]
[Round "3.10"]
[White "Arcasoy, Tugrul"]
[Black "Yaran, Siar"]
[Result "0-1"]
[ECO "B01"]
[WhiteElo "1883"]
[BlackElo "2272"]
[Annotator "ChessBase"]
[PlyCount "52"]
[EventDate "2022.03.25"]
[EventType "swiss"]
[EventCountry "TUR"]
[SourceTitle "playchess.com"]
[Source "ChessBase"]
[SourceQuality "1"]
[TimeControl "5400+30"]

1. e4 {[%emt 0:01:00]} d5 {[%emt 0:09:00]} 2. exd5 {[%emt 0:00:30]} Qxd5 {[%emt 0:00:00]} 3. Nc3 {[%emt 0:01:30]} Qd8 {[%emt 0:00:00]} 4. d4 {[%emt 0:00:30]} Nf6 {[%emt 0:00:30]} 5. Nf3 {[%emt 0:01:30]} Bg4 {[%emt 0:00:00]} 6. h3 {[%emt 0:07:30]} Bxf3 {[%emt 0:00:00]} 7. Qxf3 {[%emt 0:00:30]} c6 {[%emt 0:00:30]} 8. Bf4 {[%emt 0:07:30]} Qxd4 {[%emt 0:06:30]} 9. Bd3 {[%emt 0:06:30]} Nbd7 {[%emt 0:10:30]} 10. O-O-O {[%emt 0:01:30]} Qb6 {[%emt 0:03:30]} 11. g4 {[%emt 0:01:30]} e6 {[%emt 0:04:30]} 12. Rhe1 {[%emt 0:07:30]} Be7 {[%emt 0:10:30]} 13. Bc4 {[%emt 0:14:30]} h6 {[%emt 0:32:51]} 14. h4 {[%emt 0:14:30]} g5 {[%emt 0:00:54]} 15. hxg5 {[%emt 0:02:30]} hxg5 {[%emt 0:00:04]} 16. Bxg5 {[%emt 0:07:30]} Qc5 {[%emt 0:01:07]} 17. Bxf6 {[%emt 0:01:30]} Nxf6 {[%emt 0:00:31]} 18. Ne4 {[%emt 0:02:57]} Nxe4 {[%emt 0:09:19]} 19. Qxe4 {[%emt 0:02:47]} Rd8 {[%emt 0:04:03]} 20. Rxd8+ {[%emt 0:01:53]} Kxd8 {[%emt 0:00:20]} 21. f4 {[%emt 0:05:15]} Kc7 {[%emt 0:00:54]} 22. g5 {[%emt 0:01:17]} Bd6 {[%emt 0:02:58]} 23. Rf1 {[%emt 0:03:00]} Rh4 {[%emt 0:00:49]} 24. Kd1 {[%emt 0:02:36]} Bxf4 {[%emt 0:01:30]} 25. Rxf4 {[%emt 0:01:03]} Qd6+ {[%emt 0:00:04]} 26. Bd3 {[%emt 0:00:14]} Qxf4 {[%emt 0:00:27]} 0-1

[Event "Turkish Cup 2022"]
[Site "Sakarya"]
[Date "2022.03.26"]
[Round "3.11"]
[White "Kuru, Atilla"]
[Black "Kirilmaz, Emre"]
[Result "0-1"]
[ECO "A13"]
[WhiteElo "1674"]
[BlackElo "2229"]
[Annotator "ChessBase"]
[PlyCount "84"]
[EventDate "2022.03.25"]
[EventType "swiss"]
[EventCountry "TUR"]
[SourceTitle "playchess.com"]
[Source "ChessBase"]
[SourceQuality "1"]
[TimeControl "5400+30"]

1. c4 {[%emt 0:01:00]} e6 {[%emt 0:11:00]} 2. Nc3 {[%emt 0:00:30]} Bb4 {[%emt 0:09:30]} 3. Nf3 {[%emt 0:00:00]} c5 {[%emt 0:00:30]} 4. e3 {[%emt 0:00:00]} Nf6 {[%emt 0:00:30]} 5. Nb5 {[%emt 0:28:30]} O-O {[%emt 0:04:30]} 6. a3 {[%emt 0:04:30]} Ba5 {[%emt 0:01:30]} 7. Rb1 {[%emt 0:00:30]} Nc6 {[%emt 0:00:30]} 8. Nd6 {[%emt 0:05:30]} Qe7 {[%emt 0:04:30]} 9. Nxc8 {[%emt 0:00:00]} Raxc8 {[%emt 0:00:30]} 10. Be2 {[%emt 0:00:00]} d5 {[%emt 0:01:30]} 11. b3 {[%emt 0:00:30]} e5 {[%emt 0:04:30]} 12. cxd5 {[%emt 0:00:30]} Nxd5 {[%emt 0:00:00]} 13. O-O {[%emt 0:00:30]} e4 {[%emt 0:04:00]} 14. Ne1 {[%emt 0:00:30]} Ne5 {[%emt 0:02:30]} 15. Qc2 {[%emt 0:00:30]} f5 {[%emt 0:00:00]} 16. Bc4 {[%emt 0:01:30]} Nxc4 {[%emt 0:03:00]} 17. bxc4 {[%emt 0:00:30]} Nf6 {[%emt 0:05:30]} 18. f4 {[%emt 0:00:30]} Rfd8 {[%emt 0:01:30]} 19. Rf2 {[%emt 0:02:30]} Rc6 {[%emt 0:10:30]} 20. Rb5 {[%emt 0:02:30]} b6 {[%emt 0:04:30]} 21. g3 {[%emt 0:05:30]} Rcd6 {[%emt 0:02:30]} 22. h3 {[%emt 0:01:30]} Ne8 {[%emt 0:02:30]} 23. Rb2 {[%emt 0:01:30]} Rh6 {[%emt 0:00:30]} 24. Rh2 {[%emt 0:01:30]} Qe6 {[%emt 0:05:30]} 25. Qa4 {[%emt 0:00:30]} Nd6 {[%emt 0:01:30]} 26. Rc2 {[%emt 0:00:30]} Qg6 {[%emt 0:00:30]} 27. Kf2 {[%emt 0:00:30]} Qh5 {[%emt 0:00:00]} 28. Rb2 {[%emt 0:01:30]} Ne8 {[%emt 0:00:00]} 29. h4 {[%emt 0:01:30]} Rhd6 {[%emt 0:01:30]} 30. Kg1 {[%emt 0:00:30]} Nf6 {[%emt 0:04:34]} 31. Rg2 {[%emt 0:00:30]} Ng4 {[%emt 0:00:42]} 32. Qd1 {[%emt 0:00:30]} Qe8 {[%emt 0:00:50]} 33. Qe2 {[%emt 0:01:30]} Qa4 {[%emt 0:00:30]} 34. Rb1 {[%emt 0:00:30]} h5 {[%emt 0:00:58]} 35. Rb5 {[%emt 0:01:30]} g6 {[%emt 0:01:55]} 36. Kh1 {[%emt 0:01:30]} Bxd2 {[%emt 0:06:07]} 37. Bxd2 {[%emt 0:07:30]} Rxd2 {[%emt 0:00:08]} 38. Qf1 {[%emt 0:00:30]} Rxg2 {[%emt 0:02:48]} 39. Qxg2 {[%emt 0:00:30]} Qd1 {[%emt 0:00:13]} 40. Qg1 {[%emt 0:00:00]} Rd2 {[%emt 0:00:01]} 41. Ng2 {[%emt 0:00:00]} Qf3 {[%emt 0:00:56]} 42. Rb1 {[%emt 0:01:30]} Qxg3 {[%emt 0:00:07]} 0-1

[Event "Turkish Cup 2022"]
[Site "Sakarya"]
[Date "2022.03.26"]
[Round "3.12"]
[White "Durucay, Uygar"]
[Black "Gulbeyaz, Emir"]
[Result "0-1"]
[ECO "E21"]
[WhiteElo "1700"]
[BlackElo "2218"]
[Annotator "ChessBase"]
[PlyCount "146"]
[EventDate "2022.03.25"]
[EventType "swiss"]
[EventCountry "TUR"]
[SourceTitle "playchess.com"]
[Source "ChessBase"]
[SourceQuality "1"]
[TimeControl "5400+30"]

1. d4 {[%emt 0:01:00]} Nf6 {[%emt 0:06:00]} 2. c4 {[%emt 0:00:30]} e6 {[%emt 0:00:30]} 3. Nc3 {[%emt 0:00:00]} Bb4 {[%emt 0:00:30]} 4. e3 {[%emt 0:00:00]} b6 {[%emt 0:00:30]} 5. Bd2 {[%emt 0:00:30]} Bb7 {[%emt 0:00:30]} 6. Nf3 {[%emt 0:00:30]} O-O {[%emt 0:01:30]} 7. Bd3 {[%emt 0:01:30]} d6 {[%emt 0:02:30]} 8. O-O {[%emt 0:01:30]} Nbd7 {[%emt 0:00:00]} 9. a3 {[%emt 0:01:30]} Bxc3 {[%emt 0:00:00]} 10. Bxc3 {[%emt 0:00:00]} Qe7 {[%emt 0:03:30]} 11. Bc2 {[%emt 0:06:00]} Ne4 {[%emt 0:01:30]} 12. Be1 {[%emt 0:00:30]} f5 {[%emt 0:00:30]} 13. Nd2 {[%emt 0:00:30]} Ng5 {[%emt 0:08:30]} 14. f4 {[%emt 0:04:30]} Nf7 {[%emt 0:00:30]} 15. h3 {[%emt 0:11:30]} Kh8 {[%emt 0:03:30]} 16. Nf3 {[%emt 0:13:30]} a6 {[%emt 0:24:30]} 17. Bh4 {[%emt 0:07:30]} Qe8 {[%emt 0:00:30]} 18. Qe2 {[%emt 0:01:30]} b5 {[%emt 0:06:30]} 19. cxb5 {[%emt 0:04:30]} axb5 {[%emt 0:00:30]} 20. e4 {[%emt 0:03:30]} Nh6 {[%emt 0:09:30]} 21. Rae1 {[%emt 0:01:30]} Nb6 {[%emt 0:03:30]} 22. Ng5 {[%emt 0:02:30]} Qd7 {[%emt 0:00:30]} 23. exf5 {[%emt 0:03:30]} exf5 {[%emt 0:00:30]} 24. Bb3 {[%emt 0:00:30]} Bd5 {[%emt 0:05:30]} 25. Bxd5 {[%emt 0:02:30]} Nxd5 {[%emt 0:00:30]} 26. Qf3 {[%emt 0:00:30]} c6 {[%emt 0:00:30]} 27. Re2 {[%emt 0:05:30]} Rae8 {[%emt 0:02:12]} 28. Rfe1 {[%emt 0:00:30]} Rxe2 {[%emt 0:00:03]} 29. Rxe2 {[%emt 0:01:30]} Nf7 {[%emt 0:00:15]} 30. Nxf7+ {[%emt 0:03:30]} Qxf7 {[%emt 0:00:30]} 31. g3 {[%emt 0:02:30]} h6 {[%emt 0:00:30]} 32. Rf2 {[%emt 0:01:47]} Qa7 {[%emt 0:00:30]} 33. Qd3 {[%emt 0:01:26]} Re8 {[%emt 0:00:00]} 34. g4 {[%emt 0:00:25]} Re4 {[%emt 0:01:59]} 35. gxf5 {[%emt 0:01:48]} Re3 {[%emt 0:00:07]} 36. Qd2 {[%emt 0:03:05]} Rxh3 {[%emt 0:02:53]} 37. Qe2 {[%emt 0:03:07]} Re3 {[%emt 0:00:41]} 38. Qg4 {[%emt 0:01:58]} Qxd4 {[%emt 0:04:54]} 39. Kh2 {[%emt 0:00:15]} Re4 {[%emt 0:02:20]} 40. Qg6 {[%emt 0:01:01]} Qe3 {[%emt 0:05:03]} 41. Bg3 {[%emt 0:10:35]} Nf6 {[%emt 0:01:43]} 42. Rg2 {[%emt 0:00:23]} Qf3 {[%emt 0:00:39]} 43. Qf7 {[%emt 0:00:38]} Re2 {[%emt 0:01:56]} 44. Bf2 {[%emt 0:00:23]} Qh5+ {[%emt 0:02:35]} 45. Qxh5 {[%emt 0:00:30]} Nxh5 {[%emt 0:00:00]} 46. Bd4 {[%emt 0:00:00]} Re4 {[%emt 0:00:53]} 47. Bc3 {[%emt 0:00:18]} d5 {[%emt 0:00:37]} 48. Be5 {[%emt 0:01:15]} Nxf4 {[%emt 0:01:30]} 49. Bxg7+ {[%emt 0:00:30]} Kh7 {[%emt 0:00:00]} 50. Rg4 {[%emt 0:00:18]} h5 {[%emt 0:00:06]} 51. Rg5 {[%emt 0:00:00]} Kg8 {[%emt 0:00:55]} 52. Bc3+ {[%emt 0:00:26]} Kf8 {[%emt 0:00:12]} 53. Bf6 {[%emt 0:01:42]} Kf7 {[%emt 0:00:05]} 54. Bh8 {[%emt 0:00:06]} h4 {[%emt 0:00:19]} 55. Rg7+ {[%emt 0:00:47]} Kf6 {[%emt 0:00:11]} 56. Rh7+ {[%emt 0:00:41]} Kxf5 {[%emt 0:00:30]} 57. Rxh4 {[%emt 0:00:00]} Re2+ {[%emt 0:00:00]} 58. Kg3 {[%emt 0:00:00]} Re3+ {[%emt 0:00:44]} 59. Kf2 {[%emt 0:00:27]} Re8 {[%emt 0:00:04]} 60. Bd4 {[%emt 0:00:05]} Re4 {[%emt 0:00:35]} 61. Bh8 {[%emt 0:00:57]} d4 {[%emt 0:00:19]} 62. Kf1 {[%emt 0:00:20]} c5 {[%emt 0:01:01]} 63. Rh2 {[%emt 0:00:45]} Re8 {[%emt 0:00:11]} 64. Rh6 {[%emt 0:00:18]} Ke4 {[%emt 0:00:35]} 65. Bf6 {[%emt 0:00:16]} Re6 {[%emt 0:00:57]} 66. Bg5 {[%emt 0:00:30]} Rxh6 {[%emt 0:00:30]} 67. Bxh6 {[%emt 0:00:00]} c4 {[%emt 0:00:00]} 68. Bxf4 {[%emt 0:01:19]} Kxf4 {[%emt 0:00:00]} 69. Ke2 {[%emt 0:00:30]} Ke4 {[%emt 0:00:19]} 70. Kd2 {[%emt 0:00:30]} d3 {[%emt 0:00:30]} 71. Kd1 {[%emt 0:00:00]} Ke3 {[%emt 0:00:00]} 72. Ke1 {[%emt 0:00:11]} d2+ {[%emt 0:00:00]} 73. Kd1 {[%emt 0:00:30]} Kd3 {[%emt 0:00:00]} 0-1